{"text_format":"1","workbook":"xlsx","n_sheets":2,"sheets":["Схема","EXCEL2.RU"],"not_rendered":{"charts":0,"images":0,"macros":1,"external_links":1,"defined_names":8,"comments":0,"pivot_tables":0},"unopened":[],"bounds":{"document_bytes":16777216,"sheet_cells":100000,"rows_first":2000,"rows_last":500,"rows_between":2000,"halvings":0,"cell_chars":16384,"cell_head_chars":4096},"cells_cut":0,"cells_raw":0,"read":"whole","date_system":"1900"}

{"sheet":"Схема","index":0,"n_rows":54,"n_cols":22,"rows_kept":54,"cut":false,"hidden":false,"merged":[]}
["Файл скачан с сайта excel2.ru >>>"]
["Перейти к статье >>>"]
["Построение произвольных блок-схем и автоматический анализ связей в MS EXCEL"]
[]
["Правила построения Схемы",null,null,null,null,null,null,null,null,null,null,null,null,"Пример построения схемы с нуля"]
["1. У элемента допускается не более одной исходящей стрелки. Если у элемента отсутствует исходящая стрелка, то он называется Конечным элементом",null,null,null,null,null,null,null,null,null,null,null,null,"1. Выделите ячейку на листе куда нужно поставить элемент"]
["2.  У элемента допускается несколько входящих стрелок. Если у элемента отсутствует входящая стрелка, то он называется Начальным элементом",null,null,null,null,null,null,null,null,null,null,null,null,"2. Нажмите кнопку Вставить элемент, элемент (прямоугольник с номером 01) появится на листе"]
["3. Каждый элемент должен иметь соединение хотя бы с одним другим элементом",null,null,null,null,null,null,null,null,null,null,null,null,"3. Вставьте еще 1 элемент повторив шаг 1 и 2. На листе появится элемент с номером 02"]
["4. Два элемента могут быть соединены только одной стрелкой",null,null,null,null,null,null,null,null,null,null,null,null,"4. Выделите сначала элемент 01, затем, удерживая CTRL или SHIFT, выделите элемент 02 (последовательность выделения элементов важна для направления стрелки)"]
["5. Конечных элементов в схеме может быть несколько. ",null,null,null,null,null,null,null,null,null,null,null,null,"5. Нажмите кнопку Связать 2 элемента, появится стрелка соединяющая элемент 01 с 02. Элементы можно перемещать, стрелка будет перемещаться вместе с элементами"]
["6. Количество несвязанных между собой последовательностей элементов равно количеству Конечных элементов (следствие Правила №1)",null,null,null,null,null,null,null,null,null,null,null,null,"6. Нажмите кнопку Анализ схемы - заполнится таблица Результаты анализа схемы"]
["7. Для анализа схемы все элементы и стрелки именуются по определенному формату, это нужно для работоспособности схемы"]
["8. Вставляйте элементы и стрелки только с использованием кнопок на листе \"Вставить элемент\" и Связать 2 элемента\""]
["9. Не удаляйте элементы по отдельности - это может нарушить работоспособность схемы. Удаляйте схему целиком. Стрелки удалять можно"]
["10. Стрелки не соединяющие 2 элемента не допускаются (могут возникнуть при удалении 1 элемента)"]
["11. Элементы на схеме двигать можно, стрелки будут следовать за своим элементом. Если нужно подвинуть стрелку, то двигайте элемент"]
[null,null,null,null,null,null,null,null,null,"Описание схемы"]
[null,null,null,null,null,null,null,null,null,"Всего элементов",{"$f":"COUNT(J31:J105)","v":7},{"$f":"AND(SchFilled<21,SchFilled>1)","v":true},"Минимум 2 элемента, максимум 20"]
[null,null,null,null,null,null,null,null,null,"Кол-во начальных эл-тов",{"$f":"COUNTIF(M31:M50,0)","v":2},"количество начальных элементов (без входящих стрелок)"]
[null,null,null,null,null,null,null,null,null,"Кол-во конечных эл-тов",{"$f":"COUNTIF(L31:L50,0)","v":1},"количество конечных элементов (без исходящих стрелок)"]
[null,null,null,null,null,null,null,null,null,"Независимые последовательности элементов",{"$f":"K20=1","v":true},"Несвязанные последовательности элементов в схеме отсутствуют"]
[null,null,null,null,null,null,null,null,null,"Замкнутый контур ",{"$f":"AND(K20)","v":true},"Замкнутый контур отсутствует"]
[null,null,null,null,null,null,null,null,null,"Последовательность",{"$f":"Q28","v":5},"Количество элементов в самой длинной последовательности элементов в схеме (последовательности считаются от Начального до Конечного элемента в направлении стрелок)"]
[null,null,null,null,null,null,null,null,null,"Все элементы соединены",{"$f":"AND(O31:O50)","v":true}]
[]
[null,null,null,null,null,null,null,null,null,"Нач.строка",{"$f":"ROW(J30)","v":30},null,"Предшественник №",1]
[null,null,null,null,null,null,null,null,null,"Нач.столбец",{"$f":"COLUMN(J30)","v":10},null,null,{"$f":"MID(N33,N26*2-1,2)","v":"07"},null,null,"Вычисление самой длинной последовательности элементов"]
[null,null,null,null,null,null,null,null,null,null,null,null,null,null,null,null,{"$f":"MAX(R28:V28)","v":5},{"$f":"IFERROR(MATCH(0,R31:R50,0)-1,0)","v":4},{"$f":"IFERROR(MATCH(0,S31:S50,0)-1,0)","v":5},0,0,0]
[null,null,null,null,null,null,null,null,null,"Результаты анализа схемы"]
[null,null,null,null,null,null,null,null,null,"№ элемента","Последователь (всегда 1)","Число исх. Стрелок","Число входящих стрелок (0 или 1)","Предшественники","Проверка на отсутствие стрелок у элемента",null,"№","Начало1","Начало2","Начало3","Начало4","Начало5"]
[null,null,null,null,null,null,null,null,null,1,2,1,0,null,{"$f":"IF(ISBLANK(J31),\"\",OR(L31>0,M31>0))","v":true},null,1,{"$f":"MATCH(0,M31:M50,0)","v":1},{"$f":"MATCH(0,OFFSET($M$31,R31,,COUNT($M$31:$M$50)-R31),0)+R31","v":4},{"$f":"MATCH(0,OFFSET($M$31,S31,,COUNT($M$31:$M$50)-S31),0)+S31","v":{"$error":"#N/A"}},{"$f":"MATCH(0,OFFSET($M$31,T31,,COUNT($M$31:$M$50)-T31),0)+T31","v":{"$error":"#N/A"}},{"$f":"MATCH(0,OFFSET($M$31,U31,,COUNT($M$31:$M$50)-U31),0)+U31","v":{"$error":"#N/A"}}]
[null,null,null,null,null,null,null,null,null,2,3,1,1,"01",true,null,2,{"$f":"VLOOKUP(R31,$J$31:$K$50,2,0)","v":2},{"$f":"VLOOKUP(S31,$J$31:$K$50,2,0)","v":5},{"$f":"VLOOKUP(T31,$J$31:$K$50,2,0)","v":{"$error":"#N/A"}},{"$f":"VLOOKUP(U31,$J$31:$K$50,2,0)","v":{"$error":"#N/A"}},{"$f":"VLOOKUP(V31,$J$31:$K$50,2,0)","v":{"$error":"#N/A"}}]
[null,null,null,null,null,null,null,null,null,3,6,1,2,"0702",true,null,3,3,7,{"$error":"#N/A"},{"$error":"#N/A"},{"$error":"#N/A"}]
[null,null,null,null,null,null,null,null,null,4,5,1,0,null,true,null,4,6,3,{"$error":"#N/A"},{"$error":"#N/A"},{"$error":"#N/A"}]
[null,null,null,null,null,null,null,null,null,5,7,1,1,"04",true,null,5,0,6,{"$error":"#N/A"},{"$error":"#N/A"},{"$error":"#N/A"}]
[null,null,null,null,null,null,null,null,null,6,0,0,1,"03",true,null,6,{"$error":"#N/A"},0,{"$error":"#N/A"},{"$error":"#N/A"},{"$error":"#N/A"}]
[null,null,null,null,null,null,null,null,null,7,3,1,1,"05",true,null,7,{"$error":"#N/A"},{"$error":"#N/A"},{"$error":"#N/A"},{"$error":"#N/A"},{"$error":"#N/A"}]
[null,null,null,null,null,null,null,null,null,null,null,null,null,null,"",null,8,{"$error":"#N/A"},{"$error":"#N/A"},{"$error":"#N/A"},{"$error":"#N/A"},{"$error":"#N/A"}]
[null,null,null,null,null,null,null,null,null,null,null,null,null,null,"",null,9,{"$error":"#N/A"},{"$error":"#N/A"},{"$error":"#N/A"},{"$error":"#N/A"},{"$error":"#N/A"}]
[null,null,null,null,null,null,null,null,null,null,null,null,null,null,"",null,10,{"$error":"#N/A"},{"$error":"#N/A"},{"$error":"#N/A"},{"$error":"#N/A"},{"$error":"#N/A"}]
[null,null,null,null,null,null,null,null,null,null,null,null,null,null,"",null,11,{"$error":"#N/A"},{"$error":"#N/A"},{"$error":"#N/A"},{"$error":"#N/A"},{"$error":"#N/A"}]
[null,null,null,null,null,null,null,null,null,null,null,null,null,null,"",null,12,{"$error":"#N/A"},{"$error":"#N/A"},{"$error":"#N/A"},{"$error":"#N/A"},{"$error":"#N/A"}]
[null,null,null,null,null,null,null,null,null,null,null,null,null,null,"",null,13,{"$error":"#N/A"},{"$error":"#N/A"},{"$error":"#N/A"},{"$error":"#N/A"},{"$error":"#N/A"}]
[null,null,null,null,null,null,null,null,null,null,null,null,null,null,"",null,14,{"$error":"#N/A"},{"$error":"#N/A"},{"$error":"#N/A"},{"$error":"#N/A"},{"$error":"#N/A"}]
[null,null,null,null,null,null,null,null,null,null,null,null,null,null,"",null,15,{"$error":"#N/A"},{"$error":"#N/A"},{"$error":"#N/A"},{"$error":"#N/A"},{"$error":"#N/A"}]
[null,null,null,null,null,null,null,null,null,null,null,null,null,null,"",null,16,{"$error":"#N/A"},{"$error":"#N/A"},{"$error":"#N/A"},{"$error":"#N/A"},{"$error":"#N/A"}]
[null,null,null,null,null,null,null,null,null,null,null,null,null,null,"",null,17,{"$error":"#N/A"},{"$error":"#N/A"},{"$error":"#N/A"},{"$error":"#N/A"},{"$error":"#N/A"}]
[null,null,null,null,null,null,null,null,null,null,null,null,null,null,"",null,18,{"$error":"#N/A"},{"$error":"#N/A"},{"$error":"#N/A"},{"$error":"#N/A"},{"$error":"#N/A"}]
[null,null,null,null,null,null,null,null,null,null,null,null,null,null,"",null,19,{"$error":"#N/A"},{"$error":"#N/A"},{"$error":"#N/A"},{"$error":"#N/A"},{"$error":"#N/A"}]
[null,null,null,null,null,null,null,null,null,null,null,null,null,null,"",null,20,{"$error":"#N/A"},{"$error":"#N/A"},{"$error":"#N/A"},{"$error":"#N/A"},{"$error":"#N/A"}]
[]
[]
["Примечание:"]
["Код программы VBA скрыт, если нужны пояснения, то пишите в группу https://vk.com/excel2ru"]

{"sheet":"EXCEL2.RU","index":1,"n_rows":3,"n_cols":1,"rows_kept":3,"cut":false,"hidden":false,"merged":[[0,0,0,6]]}
["EXCEL2.RU - профессиональные приемы для всех >>>"]
["Хорошая новость! Большинство задач, которые Вы хотите решить с помощью MS EXCEL – уже давно решены! \nНа нашем сайте Вы найдете решения множества из наиболее часто встречающихся задач. Сайт содержит более 500 качественно оформленных статей с файлами примеров."]
["Миссия нашего сайта - превратить Вашу работу в MS EXCEL в приятное времяпрепровождение и ускорить решение Ваших задач. Мы постоянно работаем над содержанием и оформлением нашего сайта и благодарим активных пользователей за поддержку и неоценимую помощь в нашей работе."]